Cogmind - Beta 13 @@@ ROGUE MODE // 2024.04.20 @ 10:20:13 Player: sick0r Result: Destroyed by S-10 Pest with Light Assault Rifle Performance ------------- Evolutions (0) 0 Regions Visited (3) 600 Robots Destroyed (39) 195 Value Destroyed (854) 854 Prototype IDs (0) 0 Alien Tech Used (0) 0 Bonus (0) 0 TOTAL SCORE: 1649 Bonus ------- None Cogmind --------- Core Integrity 0/250 Matter 299/300 Energy 250/250 System Corruption 0% Temperature Cool (0) Movement Treading (320) Ox2 Location -10/Subcaves Parts ------- > --- POWER (1) -------- Ion Engine > --- PROPULSION (2) --- Light Treads Light Treads > --- UTILITY (2) ------ Huge Storage Unit Signal Interpreter > --- WEAPON (2) ------- Beam Rifle Light Assault Rifle > --- INVENTORY (25) --- Ion Engine Light Nuclear Core Light Treads Light Treads Wheel Wheel Huge Storage Unit Large Matter Pod (150) Experimental Sensor Array Signal Interpreter Signal Interpreter Hardened Light Armor Plating Hardened Light Armor Plating Hardened Light Armor Plating Hardened Light Armor Plating Hacking Suite Sensor Drone Bay EM Pulse Gun Beam Rifle Beam Rifle Subdweller Machine Gun Grenade Launcher Datajack Maul Peak State ------------ > --- POWER ------------ Ion Engine > --- PROPULSION ------- Light Treads Light Treads > --- UTILITY ---------- Huge Storage Unit Signal Interpreter > --- WEAPON ----------- Beam Rifle Light Assault Rifle > --- INVENTORY -------- Ion Engine Light Nuclear Core Light Treads Light Treads Wheel Wheel Huge Storage Unit Large Matter Pod Experimental Sensor Array Signal Interpreter Signal Interpreter Hardened Light Armor Plating Hardened Light Armor Plating Hardened Light Armor Plating Hardened Light Armor Plating Hacking Suite Sensor Drone Bay EM Pulse Gun Beam Rifle Beam Rifle Subdweller Machine Gun Grenade Launcher Datajack Maul [Rating: 13] Favorites ----------- Power Ion Engine Engine Ion Engine Propulsion Light Treads Treads Light Treads Leg Aluminum Leg Wheel Wheel Utility Huge Storage Unit Storage Huge Storage Unit Processor Signal Interpreter Protection Hardened Light Armor Plating Weapon Assault Rifle Energy Gun Beam Rifle Ballistic Gun Assault Rifle Launcher Grenade Launcher Impact Weapon Maul Build | -11 -10 -10 -10 ------- Run | Yrd Mat Min Sub Slots Evolved . | . . . . Power . | . . . . Propulsion . | . . . . Utility . | . . . . Weapon . | . . . . Parts Attached 33 | 6 13 14 . Power 3 | 1 1 1 . Engine 3 | 1 1 1 . Core . | . . . . Reactor . | . . . . Propulsion 10 | 2 5 3 . Treads 2 | . . 2 . Leg 3 | 2 1 . . Wheel 5 | . 4 1 . Hover . | . . . . Flight . | . . . . Utility 5 | 1 3 1 . Device . | . . . . Storage 2 | 1 1 . . Processor 1 | . . 1 . Hackware . | . . . . Protection 2 | . 2 . . Artifact . | . . . . Weapon 15 | 2 4 9 . Energy Gun 2 | 1 . 1 . Energy Cannon . | . . . . Ballistic Gun 10 | 1 4 5 . Ballistic Cannon . | . . . . Launcher 2 | . . 2 . Special Weapon . | . . . . Impact Weapon 1 | . . 1 . Slashing Weapon . | . . . . Piercing Weapon . | . . . . Special Melee Weapon . | . . . . Unidentified Prototypes . | . . . . Parts Lost 6 | . 1 5 . Power 1 | . . 1 . Propulsion 2 | . . 2 . Utility . | . . . . Weapon 3 | . 1 2 . Highest Loss Streak 2 | . 1 2 . To Critical Strikes . | . . . . Average Slot Usage (%) 93 | . 85 99 100 Engine 14 | . 14 14 14 Treads 12 | . . 22 28 Leg 3 | . 7 . . Wheel 11 | . 17 5 . Storage 14 | . 14 14 14 Processor 6 | . . 11 14 Protection 2 | . 3 2 . Energy Gun 6 | . 1 10 14 Ballistic Gun 21 | . 26 17 14 Naked Turns . | . . . . Heaviest Build 94 | 13 94 94 89 Greatest Support 40 | 20 26 40 40 Greatest Overweight (x) 8 | 2 8 4 2 Average Overweight (x) 2 | . 3 2 2 Largest Inventory Capacity 25 | 8 25 25 25 Average Capacity 22 | 7 20 25 25 Most Carried 25 | 8 25 25 24 Average Carried 19 | 5 15 23 23 Final Capacity 25 | 8 25 25 25 Final Carried 25 | 6 25 23 24 Class Distribution -------------------- 98% | Mutant Dominant Class ---------------- Mutant | -10/Materials Mutant | -10/Mines Mutant | -10/Subcaves Resources | -11 -10 -10 -10 ----------- Run | Yrd Mat Min Sub Matter Collected 1222 | 221 667 334 . Remotely . | . . . . Salvage Created 1075 | . 592 483 . Parts 75 | . 44 31 . Haulers Intercepted . | . . . . Recyclers Shooed . | . . . . Parts Field Recycled . | . . . . Retrieved Matter . | . . . . Parts Self-Destructed . | . . . . Prevented . | . . . . Kills | -11 -10 -10 -10 ------- Run | Yrd Mat Min Sub Combat Hostiles Destroyed 33 | . 15 18 . Melee 1 | . . 1 . Guns 28 | . 15 13 . AOE 4 | . . 4 . Classes Destroyed 8 | . 6 2 . Worker 1 | . 1 . . Builder 1 | . 1 . . Tunneler 1 | . . 1 . Operator 1 | . 1 . . Watcher 3 | . 3 . . Swarmer 15 | . 6 9 . Grunt 17 | . 9 8 . Assembled 1 | . . 1 . Best Kill Streak 5 | . 5 3 . Combat Bots Only 4 | . 4 3 . Max Kills in Single Turn 2 | . 1 2 . Gunslinging . | . . . . Exploded 2 | . . 2 . Melee 1 | . . 1 . Uniques/NPCs Destroyed . | . . . . Combat | -11 -10 -10 -10 -------- Run | Yrd Mat Min Sub Hostile Shots Fired 160 | . 56 89 15 Missed 49 | . 18 25 6 Damage Taken 1295 | . 418 823 54 Core 252 | . 135 103 14 Absorbed by Shields . | . . . . Regen/Repaired (Parts) 42 | . 42 . . Core Remaining (%) 100 | 100 . . . Volleys Fired 114 | . 71 42 1 Largest 2 | . 2 2 2 Hottest 76 | . 60 76 76 Shots Fired 225 | . 140 83 2 Gun 219 | . 140 77 2 Cannon . | . . . . Launcher 6 | . . 6 . Special . | . . . . Kinetic 193 | . 121 71 1 Thermal 26 | . 19 6 1 Explosive 6 | . . 6 . Electromagnetic . | . . . . Robot Hit Streak 15 | . 12 15 1 Robot Miss Streak 7 | . 7 6 1 Penetration Max . | . . . . Secondary Targets 2 | . . 2 . Max Gunslinging Chain 1 | . . 1 . Shots Hit Robots 133 | . 74 58 1 Core Hits 66 | . 35 31 . Critical Kills 2 | . 1 1 . Critical Parts Destroyed 1 | . 1 . . Critical Strikes 3 | . 2 1 . Destroy 2 | . 2 . . Smash 1 | . . 1 . Melee Attacks 10 | . . 10 . Impact 10 | . . 10 . Slashing . | . . . . Piercing . | . . . . Sneak Attacks . | . . . . Combat Hostiles . | . . . . Follow-up Attacks . | . . . . Damage Inflicted 1853 | . 927 916 10 Guns 1495 | . 927 558 10 Cannons . | . . . . Explosions 285 | . . 285 . Melee 73 | . . 73 . Ramming . | . . . . Kinetic 1322 | . 825 487 10 Thermal 173 | . 102 71 . Explosive 285 | . . 285 . Electromagnetic . | . . . . Impact 73 | . . 73 . Slashing . | . . . . Piercing . | . . . . Highest Corruption . | . . . . Average Corruption . | . . . . Corruption Purged . | . . . . Corruption Blocked . | . . . . Overload Shots . | . . . . Overflow Damage 4 | . . 4 . Projectiles . | . . . . Explosions 4 | . . 4 . Melee . | . . . . Knockbacks . | . . . . Impact . | . . . . Kinetic . | . . . . Secondary . | . . . . Self-Inflicted Damage 133 | . . 133 . Shots 4 | . . 4 . Rammed . | . . . . Targets Rammed . | . . . . Kicked . | . . . . Crushed . | . . . . Highest Temperature 128 | . 20 128 . Average Temperature 18 | . 8 22 . Received Heat Transfer 426 | . 186 240 . Siege Activations . | . . . . Robots Corrupted . | . . . . Combat Hostiles . | . . . . Parts Fried . | . . . . Impact Corruptions . | . . . . Robots Melted . | . . . . Combat Hostiles . | . . . . Parts Melted 1 | . 1 . . Heat Transferred 410 | . 225 185 . Parts Sabotaged . | . . . . Parts Stolen . | . . . . Parts Stripped . | . . . . Power Chain Reactions . | . . . . Alert | -11 -10 -10 -10 ------- Run | Yrd Mat Min Sub Peak Influence 288 | . 288 219 . Initial 2 | . . 2 . Average 58 | . 81 40 . Maximum Alert Level 1 | . 1 1 . Low Security (%) 92 | 100 86 98 . Level 1 7 | . 13 1 . Level 2 . | . . . . Level 3 . | . . . . Level 4 . | . . . . Level 5 . | . . . . High Security . | . . . . Max Security . | . . . . Squads Dispatched 3 | . 3 . . Investigation 1 | . 1 . . Extermination . | . . . . Reinforcement 2 | . 2 . . Assault . | . . . . Garrison . | . . . . Intercept . | . . . . Searches Triggered . | . . . . Construction Impeded . | . . . . Haulers Reinforced . | . . . . Active Scanning Responses . | . . . . Cargo Convoy Interrupts . | . . . . Stealth | -11 -10 -10 -10 --------- Run | Yrd Mat Min Sub Distress Signals 4 | . 4 . . Communications Jammed . | . . . . Distress Signals . | . . . . Times Spotted 58 | . 30 18 10 Peak Tracking Total 6 | . 4 3 6 Tactical Retreats 2 | . 1 . 1 Traps | -11 -10 -10 -10 ------- Run | Yrd Mat Min Sub Traps Triggered 2 | . 2 . . Indirectly . | . . . . Trap Hack Attempts . | . . . . Triggered . | . . . . Disarmed . | . . . . Reprogrammed . | . . . . Reused . | . . . . Traps Extracted . | . . . . Installed . | . . . . Triggered . | . . . . Machines | -11 -10 -10 -10 ---------- Run | Yrd Mat Min Sub Machines Disabled 1 | . . 1 . Max in Single Turn 1 | . . 1 . Machines Repaired . | . . . . Machines Dismantled . | . . . . Machines Sabotaged . | . . . . Overloaded Fab Kills . | . . . . Hacking | -11 -10 -10 -10 --------- Run | Yrd Mat Min Sub Machines Accessed 3 | . 2 1 . Terminals 1 | . 1 . . Fabricators . | . . . . Repair Stations 1 | . 1 . . Recycling Units . | . . . . Scanalyzers . | . . . . Garrison Access . | . . . . Total Hacks 8 | . 7 1 . Successful 7 | . 6 1 . Failed 1 | . 1 . . Catastrophic . | . . . . Database Lockouts . | . . . . Manual . | . . . . Terminals 3 | . 3 . . Fabricators . | . . . . Repair Stations 4 | . 4 . . Recycling Units . | . . . . Scanalyzers . | . . . . Garrison Access . | . . . . Terminal Hacks 3 | . 2 1 . Open Door 1 | . . 1 . Unreport Threat 2 | . 2 . . Fabricator Hacks . | . . . . Repair Station Hacks 4 | . 4 . . Scan Component 2 | . 2 . . Repair 2 | . 2 . . Recycling Unit Hacks . | . . . . Scanalyzer . | . . . . Garrison Access Hacks . | . . . . Unauthorized Hacks . | . . . . Terminals . | . . . . Fabricators . | . . . . Repair Stations . | . . . . Recycling Units . | . . . . Scanalyzers . | . . . . Garrison Access . | . . . . Data Cores Recovered . | . . . . Used . | . . . . Hacking Detections 2 | . 2 . . Full Trace Events . | . . . . Feedback Events . | . . . . Feedback Blocked . | . . . . Robot Schematics Acquired . | . . . . Robots Built . | . . . . Authchips . | . . . . Time . | . . . . Total Robot Build Rating . | . . . . Part Schematics Acquired . | . . . . Parts Built . | . . . . Authchips . | . . . . Time . | . . . . Total Part Build Rating . | . . . . Parts Repaired 2 | . 2 . . Time 64 | . 64 . . Parts Recycled . | . . . . Recycled Matter . | . . . . Retrieved Matter . | . . . . Retrieved Components . | . . . . Parts Scanalyzed . | . . . . Part Schematics Acquired . | . . . . Parts Damaged . | . . . . Bothacking | -11 -10 -10 -10 ------------ Run | Yrd Mat Min Sub Used RIF Installer . | . . . . Robots Hacked . | . . . . Non-combat . | . . . . Combat . | . . . . Robot Hacks Applied . | . . . . Relay Couplers Released . | . . . . Fabnet Peak Effective % . | . . . . Robots Rewired . | . . . . Allies Hacked . | . . . . Hacks Repelled . | . . . . Allies | -11 -10 -10 -10 -------- Run | Yrd Mat Min Sub Total Allies . | . . . . Largest Group . | . . . . Highest-Rated Group . | . . . . Highest-Rated Ally . | . . . . Total Orders . | . . . . Ally Attacks . | . . . . Total Damage . | . . . . Kills . | . . . . Allies Corrupted . | . . . . Allies Melted . | . . . . Intel | -11 -10 -10 -10 ------- Run | Yrd Mat Min Sub Robot Analysis Total . | . . . . Derelict Logs Recovered 2 | . . 2 . Drone Launches . | . . . . Drone Recoveries . | . . . . Exploration | -11 -10 -10 -10 ------------- Run | Yrd Mat Min Sub Turns Passed 5324 | 80 2378 2821 45 Spaces Moved 2427 | 53 1383 978 13 Core 32 | 32 . . . Treads 672 | . . 659 13 Legs 434 | 21 413 . . Wheels 1289 | . 970 319 . Hover . | . . . . Flight . | . . . . Fastest Speed 50 | 50 120 140 320 Average Speed 190 | 117 142 261 320 Slowest Speed 400 | 150 400 320 320 Overloaded Moves . | . . . . Propulsion Burnouts . | . . . . Robots Hopped . | . . . . Cave-ins Triggered . | . . . . Exploration Rate (%) 51 | 3 99 101 3 Regions Visited 3 Branch Regions 2 Pre-discovered Areas 1 | . . 1 . Known Exits Taken 1 | . . 1 . Unknown Exits Taken 2 | 1 1 . . Scrap Searched 2 | . . 1 1 Spaces Dug . | . . . . Terrain Destroyed 45 | . . 45 . Melee . | . . . . Projectile . | . . . . AOE 45 | . . 45 . Terrain Rammed . | . . . . Walls Destroyed . | . . . . Machines Disabled . | . . . . Actions | -11 -10 -10 -10 --------- Run | Yrd Mat Min Sub Total 2885 | 69 1653 1148 15 Wait 248 | 2 148 98 . Move 2424 | 52 1382 977 13 Hop . | . . . . Pick Up 44 | 9 30 4 1 Fast Attach 8 | 3 5 . . Attach 11 | 3 3 5 . Detach . | . . . . Swap 14 | . 5 9 . Drop 12 | . 9 3 . Fire 114 | . 71 42 1 Melee 10 | . . 10 . Ram . | . . . . Kick . | . . . . Crush . | . . . . Escape Stasis . | . . . . Rewire . | . . . . Trap . | . . . . Miscellaneous . | . . . . Route ------- -11/Scrapyard -10/Materials (discovered 5 exits: *Mat x3 / *Min / *Sub) -10/Mines (discovered 3 exits: *Mat x2 / *Sub) -10/Subcaves History --------- Turn | Location | Event 10 | -11/Scrapyard | Discovered new exit (range 15) 81 | -11/Scrapyard | Entered Materials 294 | -10/Materials | Discovered new exit (range 13) 310 | -10/Materials | Build established: Mutant 898 | -10/Materials | Discovered new exit (range 14) 931 | -10/Materials | Core integrity fell below 50% 1112 | -10/Materials | Discovered new exit (range 11) 1176 | -10/Materials | Discovered new exit (range 8) 1298 | -10/Materials | Repaired Lgt. Nuclear Core 1325 | -10/Materials | Repaired Wheel 2033 | -10/Materials | Discovered new exit (range 11) 2459 | -10/Materials | Entered Mines 2757 | -10/Mines | Learned Materials stockpile data 2854 | -10/Mines | Found a hidden stash of uninstalled traps 2875 | -10/Mines | Found a damaged Exp. Sensor Array with a note attached 2878 | -10/Mines | Found Prototype Device 2925 | -10/Mines | Learned Materials stockpile data 2952 | -10/Mines | Discovered new exit (range 5) 2960 | -10/Mines | Identified exit to Materials 2986 | -10/Mines | Excavation squad dispatched 2986 | -10/Mines | A large section of the Mines collapsed 3071 | -10/Mines | Core integrity fell below 20% 3323 | -10/Mines | Learned location of Storage (-7) 3780 | -10/Mines | Found the Drone Emporium 3798 | -10/Mines | Found Prototype Device 4222 | -10/Mines | Discovered exit to Materials (range 9) 4653 | -10/Mines | Discovered new exit (range 12) 4682 | -10/Mines | Identified exit to Subcaves 5280 | -10/Mines | Entered Subcaves 5325 | -10/Subcaves | Destroyed by S-10 Pest with Light Assault Rifle Last Messages --------------- G-47 Trooper destroyed. G-34 Mercenary destroyed. Acquired 5 matter. EXIT=FOUND: MATERIALS K-01 Serf collects debris. U-05 Engineer lays Concrete. T-07 Excavator is excavating. EXIT=FOUND T-07 Excavator is excavating. EXIT=IDENTIFIED: SUBCAVES U-05 Engineer lays Concrete. LOCATION=SUBCAVES AMBIENT_HEAT=-10 GOAL=ESCAPE Searching scrap... Found Shrapnel Trap. Found Sub. Machine Gun. Found 26 Matter. Acquired Sub. Machine Gun. S-10 Pest springs to life. Map ----- +----------------------------------------------------+ | ?????????????????????????????????????????????????? | | ?????????????????????????????????????????????????? | | ?????????????????????????????????????????????????? | | ?????????????????????????????????????????????????? | | ?????????????????????????????????????????????????? | | ?????????????????????????????????????????????????? | | ?????????????????????????????????????????????????? | | ?????????????????????????????????????????????????? | | ?????????????????????????????????????????????????? | | ?????????????????????????????????????????????????? | | ?????????????????????????????????????????????????? | | ?????????????????????????????????????????????????? | | ?????????????????????????????????????????????????? | | ?????????????????????????????????????????????????? | | ?????????????????# ?????????????????????????????? | | ?????????????????# ?????????????????????????????? | | ?????????????????# ?????????????????????????????? | | ?????????????????# ????##########???????????????? | | ?????????????????# ???## #" """#???????????????? | | ?????????????????# ??## # "#???????????????? | | ???????????????### ?## # "#???????????????? | | ???????????????# # ## s "?????????????????? | | ????????????????# s ???????????????????? | | ?????????????????# ?????????????????????? | | ??????????????????# ss#??????????????????????? | | ??????????????????# @#??????????????????????? | | ??????????????????## #??????????????????????? | | ??????????????????# # ##??????????????????????? | | ??????????????????# & ###????#??????????????????? | | ??????????????????#% #????# ### ???????????????? | | ??????????????##??## ##??? ??????????????? | | ?????????????## ??# #? ?????????????? | | ?????????????# ### ## ????????????????? | | ?????????????# #??????????????????????? | | ?????????????## ##??????????????????????? | | ??????????????## #???????????????????????? | | ???????????????### #???????????????????????? | | ?????????????????##### ##???????????????????????? | | ??????????????????????# #????????????????????????? | | ??????????????????????? #????????????????????????? | | ??????????????????????? #????????????????????????? | | ??????????????????????? ????????????????????????? | | ???????????????????????? ????????????????????????? | | ???????????????????????? ???????????????????????? | | ???????????????????????? #???????????????????????? | | ?????????????????????????????????????????????????? | | ?????????????????????????????????????????????????? | | ?????????????????????????????????????????????????? | | ?????????????????????????????????????????????????? | | ?????????????????????????????????????????????????? | +----------------------------------------------------+ Best States ------------- Heat Dissipation 25 Energy Generation 10 Energy Capacity 250 Matter Stores 300 Matter Capacity 300 Sight Range 16 Terrain Scan Density 10 Armor Coverage 150 Evasion (%) 55 Recoil Reduction 2 Item Schematics ----------------- None Robot Schematics ------------------ None Fabricated ------------ Nothing Alien Tech Used ----------------- None Achievements -------------- None Challenges ------------ None Game ------ Seed HoverMissileMonowheel Manual? 0 Play Time 00:25:43 Cumulative 28.3 hours Start 2024.04.20 @ 09:49:09 End 2024.04.20 @ 10:20:13 Sessions 2 Manual Loads 0 Difficulty Rogue Special Mode None Game No. 32 Rogue 32 Adventurer 0 Explorer 0 Win Type - Total 0 Types 0/0/0/0/0/0/0/0/0 Lore% 15 Gallery% 23 Achievement% 100 Wizard Run 0 Options --------- Layout 1 ASCII 0 Keyboard 0 Movement Mouse Keybinds 0 Fullscreen 1 Font 24/Smallcaps Map View 50x35 Zoom Use 0% Tactical HUD 0 Map Filters NONE Filters NONE Steam 1 RUN: 3d74686d-5d85-4cf8-a83a-fc56675e809c